bitfinex-derivatives/quotes_BTCF0:USTF0_20210406
["timestamp","ask_amount","ask_price","bid_price","bid_amount"]
[1617702118967,0.10725655,58684.0,58683.0,1.27]
[1617702119268,0.10725655,58684.0,58683.0,0.27]
[1617702119695,2.66395655,58684.0,58682.0,0.27]
[1617702119927,3.02442342,58684.0,58682.0,0.27]
[1617702120213,0.9082718,58684.0,58683.0,0.27]
[1617702120369,0.9082718,58684.0,58673.0,0.82708776]
[1617702120370,1.39875817,58683.0,58682.0,0.27]
[1617702120569,1.39875817,58683.0,58679.0,0.27]
[1617702120970,1.89941384,58683.0,58674.0,0.27]
[1617702121170,1.89941384,58683.0,58673.0,0.4712]
[1617702121371,1.89941384,58683.0,58680.0,0.27]
[1617702121670,0.82593253,58681.0,58674.0,0.27]
[1617702121970,1.62733005,58681.0,58673.0,0.4712]
[1617702122170,1.62733005,58681.0,58675.0,0.27]
[1617702122392,3.6389,58680.0,58675.0,0.27]
[1617702122579,0.2,58679.0,58674.0,0.27]
[1617702122872,0.10725655,58675.0,58673.0,0.4712]
[1617702123070,0.10725655,58675.0,58674.0,0.27]
[1617702123338,0.90823824,58675.0,58674.0,0.27]
[1617702123618,0.90823824,58675.0,58674.0,2.9449]
[1617702123819,0.59948066,58675.0,58674.0,2.9449]
[1617702130678,0.59948066,58675.0,58674.0,0.27]
[1617702131476,0.59948066,58675.0,58674.0,1.41455]
[1617702132181,0.59948066,58675.0,58674.0,0.41455]
[1617702132380,0.59948066,58675.0,58674.0,1.41455]
[1617702132583,0.59948066,58675.0,58674.0,0.41455]
[1617702132786,0.59948066,58675.0,58674.0,0.27]
[1617702136581,0.59964217,58675.0,58674.0,0.27]
[1617702137383,0.59963333,58675.0,58674.0,0.27]
[1617702141990,0.10725655,58675.0,58674.0,0.27]
[1617702146296,0.46755891,58675.0,58674.0,0.27]
[1617702147099,0.59639782,58675.0,58674.0,0.27]
[1617702148600,0.59639782,58675.0,58674.0,0.40273]
[1617702148802,0.10725655,58675.0,58674.0,0.40273]
[1617702149501,0.10725655,58675.0,58674.0,1.40273]
[1617702150219,0.10725655,58675.0,58674.0,0.40273]
[1617702150615,0.10725655,58675.0,58674.0,0.27]
[1617702152724,0.46765675,58675.0,58674.0,0.27]
[1617702153607,0.59671149,58675.0,58674.0,0.27]
[1617702158718,0.59671149,58675.0,58674.0,1.27]
[1617702159114,0.59671149,58675.0,58674.0,0.27]
[1617702161320,0.59671149,58675.0,58674.0,1.27]
[1617702161518,0.59671149,58675.0,58674.0,1.38259]
[1617702162018,0.59671149,58675.0,58674.0,4.21519]
[1617702162720,0.10725655,58675.0,58674.0,4.21519]
[1617702165025,0.10725655,58675.0,58674.0,4.51075314]
[1617702167422,0.10725655,58675.0,58674.0,1.67815314]
[1617702170925,0.46909802,58675.0,58674.0,1.46807052]
[1617702171243,0.46909802,58675.0,58674.0,4.83228052]
[1617702171525,0.46909802,58675.0,58674.0,2.35548052]
[1617702171762,3.55244373,58675.0,58674.0,1.44603316]
[1617702172425,4.25460815,58675.0,58674.0,0.92102596]
[1617702172826,4.30590815,58675.0,58674.0,0.92102596]
[1617702173524,4.25460815,58675.0,58674.0,0.92102596]
[1617702174737,4.30640815,58675.0,58674.0,0.92102596]
[1617702175730,4.25460815,58675.0,58674.0,0.92102596]
[1617702176430,0.10725655,58675.0,58674.0,0.27]
[1617702176930,0.91149513,58675.0,58674.0,0.9229101]
[1617702177832,1.03271063,58675.0,58674.0,0.9229101]
[1617702180835,0.91149513,58675.0,58674.0,0.27]
[1617702181035,0.10725655,58675.0,58674.0,0.37725655]
[1617702181438,0.91146009,58675.0,58674.0,4.01486089]
[1617702181637,0.91146009,58675.0,58674.0,5.01486089]
[1617702181838,0.91146009,58675.0,58674.0,5.4501685]
[1617702182339,1.01356824,58675.0,58674.0,5.54071928]
[1617702182939,1.01356824,58675.0,58674.0,4.54071928]
[1617702183339,1.01356824,58675.0,58674.0,5.54071928]
[1617702183539,0.57126634,58675.0,58674.0,5.54071928]
[1617702183840,0.46400979,58675.0,58674.0,5.54071928]
[1617702184439,0.36190164,58675.0,58674.0,5.54071928]
[1617702184740,0.46397924,58675.0,58674.0,4.54071928]
[1617702185055,0.46397924,58675.0,58674.0,5.54071928]
[1617702185240,0.36190164,58675.0,58674.0,5.54071928]
[1617702187051,0.36190164,58675.0,58674.0,4.54071928]
[1617702187244,0.36190164,58675.0,58674.0,5.54071928]
[1617702187644,0.36190164,58675.0,58674.0,5.74071928]
[1617702188148,0.36186444,58676.0,58674.0,5.74071928]
[1617702188546,0.36186444,58676.0,58674.0,4.54071928]
[1617702188746,0.36186444,58676.0,58675.0,1.2381978]
[1617702188946,0.36186444,58676.0,58675.0,2.2381978]
[1617702189148,0.36186444,58676.0,58675.0,2.5081978]
[1617702194056,0.36161363,58678.0,58675.0,2.5081978]
[1617702194357,0.36161363,58678.0,58675.0,1.5081978]
[1617702194657,0.36161363,58678.0,58677.0,1.0]
[1617702194957,0.36161363,58678.0,58677.0,4.73227475]
[1617702195157,0.36161363,58678.0,58677.0,5.00227475]
[1617702195857,0.36161363,58678.0,58677.0,5.15319225]
[1617702199960,0.36161479,58679.0,58677.0,5.15319225]
[1617702200360,0.36161479,58679.0,58678.0,2.73617878]
[1617702200862,0.36160904,58680.0,58678.0,4.11593878]
[1617702201262,0.36157784,58684.0,58679.0,1.72774741]
[1617702201463,0.36157784,58684.0,58680.0,1.5]
[1617702201662,0.36157246,58685.0,58683.0,2.08412979]
[1617702201862,0.36157246,58685.0,58683.0,3.58412979]
[1617702202064,0.36157246,58685.0,58684.0,1.41477851]
[1617702202363,0.36157246,58685.0,58684.0,2.41477851]
[1617702202567,0.36157246,58685.0,58684.0,2.50531419]
[1617702203364,0.36157246,58685.0,58684.0,2.61257074]
[1617702204666,0.48920091,58688.0,58684.0,2.08826646]
[1617702205066,0.48920091,58688.0,58686.0,1.0]
[1617702205366,0.48920091,58688.0,58687.0,1.64974184]
[1617702205666,0.48920091,58688.0,58687.0,1.98009893]
[1617702205866,0.48920091,58688.0,58687.0,1.71009893]
[1617702206068,0.48920091,58688.0,58687.0,1.98009893]
[1617702207169,0.48920091,58688.0,58687.0,3.48009893]
[1617702207669,0.59645746,58688.0,58687.0,3.48009893]
[1617702211674,0.23535655,58688.0,58687.0,3.48009893]
[1617702212975,0.23535655,58688.0,58687.0,6.16939893]
[1617702226091,0.23535655,58688.0,58687.0,5.16939893]
[1617702226392,0.23535655,58688.0,58687.0,6.16939893]
[1617702228995,0.23535655,58688.0,58687.0,1.98009893]
[1617702229195,3.81105655,58688.0,58687.0,0.98009893]
[1617702229394,3.95735655,58688.0,58687.0,0.98009893]
[1617702229696,4.31826755,58688.0,58687.0,0.62569429]
[1617702229895,0.74256755,58688.0,58687.0,0.62569429]
[1617702230098,0.74256755,58688.0,58687.0,4.7800372]
[1617702230320,0.74256755,58688.0,58687.0,4.9233372]
[1617702230498,0.59626755,58688.0,58687.0,4.9233372]
[1617702230998,0.23535655,58688.0,58687.0,5.27783343]
[1617702232300,0.1281,58688.0,58687.0,3.56313343]
[1617702232901,0.1281,58688.0,58687.0,4.19564793]
[1617702236004,0.1281,58688.0,58687.0,4.68693809]
[1617702238306,0.1281,58688.0,58687.0,4.19564793]
[1617702239007,0.1281,58688.0,58687.0,4.68633814]
[1617702239406,0.1281,58688.0,58687.0,4.19564793]
[1617702241508,0.1281,58688.0,58687.0,4.68641656]
[1617702242409,0.1281,58688.0,58687.0,4.19564793]
[1617702242810,0.1281,58688.0,58687.0,3.19564793]
[1617702243015,0.1281,58688.0,58687.0,4.19564793]
[1617702243411,0.0002,58700.0,58687.0,4.68606944]
[1617702243811,0.0002,58700.0,58699.0,1.60725655]
[1617702244011,0.0002,58700.0,58699.0,2.56762909]
[1617702244210,0.0002,58700.0,58699.0,8.83762909]
[1617702244411,0.0002,58700.0,58699.0,9.41916768]
[1617702245439,0.0002,58700.0,58699.0,9.9079815]
[1617702245815,3.26896334,58721.0,58707.0,0.2]
[1617702246310,3.26896334,58721.0,58708.0,0.27]
[1617702246522,0.36056927,58719.0,58718.0,0.29331757]
[1617702247011,0.36056927,58719.0,58718.0,1.0]
[1617702247210,0.36056927,58719.0,58718.0,1.27]
[1617702247816,0.46782582,58719.0,58718.0,1.37725655]
[1617702248217,0.52815432,58719.0,58718.0,1.67050074]
[1617702248714,0.96887265,58719.0,58718.0,1.37725655]
[1617702249114,0.90854415,58719.0,58718.0,1.37725655]
[1617702249414,0.96887991,58719.0,58718.0,1.37725655]
[1617702250417,0.52816158,58719.0,58718.0,1.37725655]
[1617702251414,0.52816158,58719.0,58718.0,4.09025655]
[1617702252320,0.52816158,58719.0,58718.0,4.23867655]
[1617702253822,0.52816158,58719.0,58718.0,1.52567655]
[1617702254320,0.52816158,58719.0,58718.0,1.37725655]
[1617702255122,0.96916079,58719.0,58718.0,1.37725655]
[1617702255623,0.52816158,58719.0,58718.0,1.37725655]
[1617702258626,0.52816158,58719.0,58718.0,0.37725655]
[1617702258826,0.52816158,58719.0,58718.0,1.37725655]
[1617702259328,0.52816158,58719.0,58718.0,4.89875655]
[1617702260028,0.52816158,58719.0,58718.0,1.37725655]
[1617702260729,0.52816158,58719.0,58718.0,0.37725655]
[1617702261629,0.96841525,58719.0,58718.0,0.37725655]
[1617702267732,0.96841525,58719.0,58718.0,0.27]
[1617702268232,0.96841525,58719.0,58707.0,0.27]
[1617702268432,0.96841525,58719.0,58718.0,0.27]
[1617702268433,1.46884136,58719.0,58718.0,0.27]
[1617702268741,1.46884136,58719.0,58707.0,0.27]
[1617702269234,0.10725655,58719.0,58718.0,0.27]
[1617702269432,0.10725655,58719.0,58706.0,2.4703]
[1617702269433,0.10725655,58719.0,58707.0,0.27]
[1617702269632,1.40845195,58719.0,58718.0,0.27]
[1617702269932,1.40845195,58719.0,58707.0,0.27]
[1617702270333,1.40845195,58719.0,58718.0,0.27]
[1617702270533,1.40845195,58719.0,58707.0,0.27]
[1617702270738,0.3603508,58708.0,58707.0,0.27]
[1617702270933,0.3603508,58708.0,58706.0,2.4703]
[1617702271134,0.3603508,58708.0,58707.0,0.27]
[1617702271934,0.46760735,58708.0,58707.0,0.27]
[1617702272134,0.46760735,58708.0,58707.0,1.27]
[1617702272635,0.52794228,58708.0,58707.0,1.27]
[1617702275141,0.52794228,58708.0,58707.0,0.27]
[1617702275542,0.52794228,58708.0,58703.0,0.27]
[1617702275741,1.09966597,58708.0,58703.0,0.27]
[1617702275944,2.487,58707.0,58706.0,0.27]
[1617702276142,2.487,58707.0,58703.0,0.27]
[1617702276466,0.36052564,58704.0,58702.0,0.27]
[1617702276645,0.36052564,58704.0,58698.0,0.29417146]
[1617702276850,0.80115375,58704.0,58697.0,0.29421384]
[1617702277044,0.80115375,58704.0,58703.0,0.27]
[1617702277445,0.3605329,58698.0,58696.0,0.29423946]
[1617702277845,0.86150563,58704.0,58697.0,0.27]
[1617702278346,0.36053203,58698.0,58697.0,0.27]
[1617702278745,0.36053203,58698.0,58697.0,1.5642691]
[1617702278947,0.36053203,58698.0,58697.0,0.5642691]
[1617702279146,0.36053203,58698.0,58697.0,0.2942691]
[1617702279347,0.36053203,58698.0,58697.0,1.5642691]
[1617702280047,0.46778858,58698.0,58697.0,1.5642691]
[1617702280351,0.10725655,58698.0,58697.0,1.5642691]
[1617702280547,0.10725655,58698.0,58697.0,0.5642691]
[1617702281350,0.46787834,58698.0,58697.0,0.27]
[1617702281751,0.46787834,58698.0,58691.0,1.35333044]
[1617702281752,0.90864778,58698.0,58692.0,0.27]
[1617702282150,0.50111539,58697.0,58695.0,0.27]
[1617702282366,0.50111539,58697.0,58692.0,0.27]
[1617702282752,0.36065096,58696.0,58691.0,0.29457745]
[1617702282952,0.50111539,58697.0,58693.0,0.27]
[1617702283353,0.36065323,58694.0,58692.0,0.27]
[1617702283653,0.36065323,58694.0,58691.0,0.29457745]
[1617702283853,0.36065228,58693.0,58691.0,0.29457745]
[1617702284054,0.10725655,58692.0,58691.0,0.29457745]
[1617702284256,0.10725655,58692.0,58689.0,0.84984251]
[1617702284454,0.10725655,58692.0,58691.0,1.27]
[1617702284754,0.10725655,58692.0,58691.0,1.40513864]
[1617702285054,0.10725655,58692.0,58691.0,1.67513864]
[1617702286255,0.10725655,58692.0,58691.0,0.67513864]
[1617702286455,0.10725655,58692.0,58691.0,0.56455864]
[1617702287357,0.10725655,58692.0,58691.0,0.91828648]
[1617702287758,0.46817509,58692.0,58691.0,0.91828648]
[1617702287958,0.46817509,58692.0,58691.0,1.91828648]
[1617702288357,0.46817509,58692.0,58691.0,0.91828648]
[1617702289463,0.10725655,58692.0,58691.0,0.56455864]
[1617702289863,0.46797669,58692.0,58691.0,0.27]
[1617702293367,0.46797669,58692.0,58691.0,0.56465117]
[1617702297274,0.10725655,58692.0,58691.0,0.56465117]
[1617702297473,0.46798684,58692.0,58691.0,0.27]
[1617702299173,0.46798684,58692.0,58688.0,0.29454075]
[1617702299374,0.46798684,58692.0,58690.0,0.27]
[1617702299674,0.46798684,58692.0,58686.0,1.0]
[1617702299675,0.36061893,58690.0,58687.0,0.27]
[1617702299875,0.36061893,58690.0,58686.0,1.0]
[1617702300074,0.36061879,58689.0,58687.0,0.29455671]
[1617702300274,0.36061879,58689.0,58688.0,0.27]
[1617702300475,0.36061879,58689.0,58687.0,0.56455671]
[1617702300677,0.42073254,58691.0,58686.0,1.2943785]
[1617702300876,0.42073254,58691.0,58688.0,0.27]
[1617702301176,0.36037793,58691.0,58687.0,0.27]
[1617702301576,0.36037793,58691.0,58689.0,0.27]
[1617702301777,0.36037793,58691.0,58686.0,1.2943785]
[1617702301778,0.36037793,58691.0,58687.0,0.27]
[1617702302178,0.36037793,58691.0,58690.0,0.27]
[1617702302380,0.36037793,58691.0,58686.0,1.2943785]
[1617702302578,0.36037793,58691.0,58687.0,0.27]
[1617702302781,0.36037793,58691.0,58690.0,0.27]
[1617702302979,0.10725655,58692.0,58686.0,1.2943785]
[1617702303179,0.10725655,58692.0,58687.0,0.27]
[1617702303480,0.10725655,58692.0,58690.0,0.27]
[1617702303679,0.10725655,58692.0,58687.0,0.27]
[1617702303880,0.46763888,58692.0,58687.0,0.56418695]
[1617702304079,0.46763888,58692.0,58691.0,0.27]
[1617702304280,0.46763888,58692.0,58687.0,0.29418695]
[1617702304281,0.10725655,58692.0,58687.0,0.27]
[1617702304680,0.46745768,58692.0,58688.0,0.27]
[1617702304981,0.46745768,58692.0,58687.0,0.27]
[1617702305182,0.46745768,58692.0,58686.0,0.27]
[1617702305580,0.46745768,58692.0,58688.0,0.27]
[1617702305779,0.46745768,58692.0,58686.0,1.27]
[1617702306080,0.46745768,58692.0,58687.0,0.27]
[1617702306281,0.46745768,58692.0,58686.0,1.0]
[1617702306681,0.46745768,58692.0,58687.0,0.27]
[1617702307888,0.46745768,58692.0,58685.0,1.40086207]
[1617702307889,0.46745768,58692.0,58686.0,0.27]
[1617702308183,0.46745768,58692.0,58688.0,0.27]
[1617702308584,0.46745768,58692.0,58686.0,0.27]
[1617702308983,0.46745768,58692.0,58689.0,0.27]
[1617702309184,0.46745768,58692.0,58686.0,0.27]
[1617702309484,0.46745768,58692.0,58690.0,0.27]
[1617702309886,0.46745768,58692.0,58686.0,0.27]
[1617702310186,0.46745768,58692.0,58691.0,0.20964423]
[1617702310384,0.46745768,58692.0,58686.0,0.27]
[1617702310786,0.46745768,58692.0,58691.0,0.27]
[1617702310986,0.46745768,58692.0,58686.0,0.27]
[1617702311786,0.36020705,58691.0,58686.0,0.27]
[1617702312186,0.46746144,58692.0,58686.0,0.27]
[1617702314296,0.36022102,58691.0,58686.0,0.27]
[1617702314691,0.46747671,58692.0,58686.0,0.27]
[1617702315592,0.36071111,58690.0,58688.0,0.29337515]
[1617702315992,0.10725655,58692.0,58689.0,0.27]
[1617702316509,0.10725655,58692.0,58685.0,1.10725655]
[1617702316510,0.36071102,58690.0,58688.0,0.2933379]
[1617702316801,0.36071102,58690.0,58688.0,0.6137379]
[1617702316995,0.36071102,58690.0,58688.0,0.2933379]
[1617702317296,0.36071102,58690.0,58689.0,0.27]
[1617702317994,0.10725655,58692.0,58689.0,0.27]
[1617702318194,0.36071036,58690.0,58689.0,0.27]
[1617702323802,0.36071036,58690.0,58687.0,0.29307289]
[1617702324208,0.36071036,58690.0,58688.0,0.27]
[1617702324503,0.36071036,58690.0,58687.0,0.29307289]
[1617702324504,0.36071723,58688.0,58686.0,0.29303527]
[1617702325004,0.36072321,58689.0,58686.0,0.56303527]
[1617702325303,0.36073045,58688.0,58686.0,0.56303527]
[1617702326606,0.44179608,58689.0,58687.0,0.64626946]
[1617702327005,0.44179608,58689.0,58688.0,0.56373707]
[1617702327806,0.10725655,58692.0,58688.0,0.27]
[1617702328308,0.10725655,58692.0,58690.0,0.29376547]
[1617702328811,0.44180032,58691.0,58690.0,0.29376547]
[1617702329307,0.44180032,58691.0,58690.0,0.56376547]
[1617702332212,0.54905687,58691.0,58690.0,0.56376547]
[1617702336732,3.68415687,58691.0,58690.0,0.56376547]
[1617702337019,1.05113316,58691.0,58690.0,0.27]
[1617702337218,0.30725655,58691.0,58690.0,0.27]
[1617702337443,0.30725655,58691.0,58674.0,1.0]
[1617702337688,3.46229,58679.0,58677.0,0.43116122]
[1617702338019,3.46229,58679.0,58678.0,0.56400215]
[1617702338420,3.46229,58679.0,58678.0,0.29400215]
[1617702338819,3.46229,58679.0,58678.0,0.56400215]
[1617702339140,3.90393627,58679.0,58678.0,0.56400215]
[1617702340120,4.01119282,58679.0,58678.0,0.56400215]
[1617702340627,4.01119282,58679.0,58678.0,0.27]
[1617702340922,0.67789282,58679.0,58678.0,3.8239]
[1617702341122,0.67789282,58679.0,58678.0,3.5539]
[1617702341323,4.09209282,58679.0,58678.0,0.27]
[1617702341925,4.30688997,58679.0,58678.0,0.27]
[1617702342325,4.30688997,58679.0,58672.0,0.4692]
[1617702342326,4.30688997,58679.0,58675.0,0.29417471]
[1617702342726,0.27742914,58678.0,58677.0,0.27]
[1617702343025,0.27742914,58678.0,58676.0,0.27]
[1617702343325,0.71912527,58678.0,58675.0,0.27]
[1617702343527,0.71912527,58678.0,58677.0,0.27]
[1617702343726,0.27742914,58678.0,58677.0,0.27]
[1617702343926,0.27742914,58678.0,58675.0,0.27]
[1617702344126,1.22106853,58678.0,58673.0,0.27]
[1617702344325,1.22106853,58678.0,58672.0,0.29439108]
[1617702344625,1.22106853,58678.0,58674.0,0.27]
[1617702344626,0.2,58676.0,58674.0,0.27]
[1617702344826,0.2,58676.0,58673.0,0.27]
[1617702344827,0.50194538,58675.0,58673.0,0.27]
[1617702345026,2.00194538,58675.0,58672.0,0.27]
[1617702345325,2.5817,58673.0,58670.0,0.27]
[1617702345526,4.0817,58673.0,58670.0,0.27]
[1617702345727,0.4417269,58671.0,58670.0,0.27]
[1617702346326,0.54898345,58671.0,58670.0,0.27]
[1617702346730,0.61167584,58671.0,58670.0,0.27]
[1617702347129,0.61167584,58671.0,58668.0,0.29464948]
[1617702347130,0.61167584,58671.0,58667.0,0.29467095]
[1617702347429,0.61167584,58671.0,58669.0,0.27]
[1617702347631,0.06269849,58670.0,58669.0,0.27]
[1617702347829,0.06269849,58670.0,58668.0,0.27]
[1617702348031,0.50443469,58670.0,58667.0,0.29467095]
[1617702348330,0.50443469,58670.0,58668.0,0.27]
[1617702348533,0.06269849,58670.0,58668.0,0.27]
[1617702348934,3.50384183,58669.0,58668.0,0.2671]
[1617702349133,5.00384183,58669.0,58668.0,0.2671]
[1617702349334,4.63154214,58669.0,58660.0,0.27]
[1617702349637,4.63154214,58669.0,58668.0,0.27]
[1617702349848,4.7621,58669.0,58668.0,0.27]
[1617702350033,4.7621,58669.0,58660.0,0.27]
[1617702350240,4.7621,58669.0,58654.0,0.29424914]
[1617702350241,0.10725655,58661.0,58654.0,0.29424914]
[1617702350533,0.10725655,58661.0,58656.0,0.27]
[1617702350733,0.06945045,58660.0,58656.0,0.27]
[1617702350942,0.06945045,58660.0,58655.0,0.27]
[1617702351151,0.06945045,58660.0,58657.0,0.27]
[1617702351544,0.06945045,58660.0,58655.0,0.27]
[1617702351735,0.06945045,58660.0,58658.0,0.27]
[1617702351940,0.10725655,58661.0,58658.0,0.27]
[1617702352136,0.10725655,58661.0,58656.0,3.1514]
[1617702352337,3.11,58658.0,58656.0,3.44554961]
[1617702352536,3.11,58658.0,58657.0,0.27]
[1617702352736,3.11,58658.0,58656.0,3.1514]
[1617702353037,3.11,58658.0,58657.0,0.27]
[1617702357241,3.11,58658.0,58657.0,0.56411526]
[1617702357941,3.11,58658.0,58657.0,0.27]
[1617702358141,3.11,58658.0,58657.0,0.56414789]
[1617702358542,3.11,58658.0,58657.0,0.27]
[1617702367554,3.1612,58658.0,58657.0,0.27]
[1617702367954,3.11,58658.0,58657.0,0.27]
[1617702368956,3.1617,58658.0,58657.0,0.27]
[1617702369156,3.1617,58658.0,58654.0,0.27]
[1617702369356,3.1617,58658.0,58657.0,0.27]
[1617702369557,3.1617,58658.0,58652.0,0.59435655]
[1617702369558,3.1617,58658.0,58652.0,0.88849423]
[1617702369757,3.1617,58658.0,58654.0,0.27]
[1617702369959,3.1617,58658.0,58653.0,0.27]
[1617702370358,3.1617,58658.0,58655.0,0.27]
[1617702370559,3.1617,58658.0,58653.0,0.27]
[1617702370959,3.1617,58658.0,58656.0,0.27]
[1617702371264,3.1617,58658.0,58653.0,0.27]
[1617702371462,3.1617,58658.0,58657.0,0.27]
[1617702371862,3.1617,58658.0,58652.0,0.88849423]
[1617702371863,3.1617,58658.0,58653.0,0.56411151]
[1617702372160,3.1617,58658.0,58657.0,0.27]
[1617702372460,3.26895655,58658.0,58654.0,0.27]
[1617702375466,3.21725655,58658.0,58654.0,0.27]
[1617702375665,3.21725655,58658.0,58654.0,0.56421501]
[1617702376065,3.21725655,58658.0,58654.0,0.29421501]
[1617702376366,3.21725655,58658.0,58655.0,0.27]
[1617702376566,0.0508,58657.0,58655.0,0.27]
[1617702376867,3.21725655,58658.0,58655.0,0.27]
[1617702377067,3.21725655,58658.0,58654.0,0.29433455]
[1617702377267,3.21725655,58658.0,58654.0,0.56433455]
[1617702377668,3.21725655,58658.0,58654.0,0.29433455]
[1617702377869,3.21725655,58658.0,58655.0,0.27]
[1617702383279,3.21725655,58658.0,58654.0,0.29443746]
[1617702383680,0.10725655,58658.0,58655.0,0.27]
[1617702383880,3.1554,58656.0,58655.0,0.27]
[1617702387183,3.1554,58656.0,58655.0,0.91937471]
[1617702387585,3.1554,58656.0,58655.0,0.64937471]
[1617702387984,3.1554,58656.0,58655.0,0.91937471]
[1617702388685,3.1554,58656.0,58655.0,0.97977464]
[1617702390288,3.1554,58656.0,58655.0,0.62557025]
[1617702390688,3.1554,58656.0,58655.0,0.56517032]
[1617702392989,3.51634635,58656.0,58655.0,0.56517032]
[1617702394291,3.1554,58656.0,58655.0,0.56517032]
[1617702396098,3.51642128,58656.0,58655.0,0.56517032]
[1617702398500,3.9588953,58656.0,58655.0,0.92074887]
[1617702410964,4.46203296,58656.0,58655.0,0.92074887]
[1617702411167,4.51343296,58656.0,58655.0,0.92074887]
[1617702411352,4.51343296,58656.0,58655.0,0.56517032]
[1617702411539,4.51343296,58656.0,58655.0,0.51327032]
[1617702411755,4.51343296,58656.0,58655.0,0.42817032]
[1617702411954,4.51343296,58656.0,58655.0,0.32187032]
[1617702412214,4.51343296,58656.0,58655.0,0.11107032]
[1617702412440,4.46203296,58656.0,58655.0,0.06027032]
[1617702413122,1.30663296,58656.0,58655.0,0.05497032]
[1617702413318,1.30663296,58656.0,58655.0,0.01797032]
[1617702413515,1.35783296,58656.0,58650.0,0.35700894]
[1617702413815,1.35783296,58656.0,58632.0,0.4695]
[1617702413816,1.35783296,58656.0,58655.0,0.0267]
[1617702414015,1.35783296,58656.0,58651.0,0.1917]
[1617702414216,0.72176893,58655.0,58647.0,0.24]
[1617702414415,0.72176893,58655.0,58649.0,0.08]
[1617702414616,0.72176893,58655.0,58652.0,0.18]
[1617702414915,0.72176893,58655.0,58648.0,0.25]
[1617702415117,0.72176893,58655.0,58653.0,0.18]
[1617702415118,0.56354884,58654.0,58653.0,0.18]
[1617702415516,0.56354884,58654.0,58649.0,0.27]
[1617702415719,0.56354884,58654.0,58640.0,0.43669801]
[1617702415720,1.50953044,58654.0,58644.0,0.08]
[1617702415922,1.50953044,58654.0,58640.0,0.43669801]
[1617702416119,0.56354884,58654.0,58650.0,0.27]
[1617702416321,0.56354884,58654.0,58645.0,0.09]
[1617702416519,0.94598414,58651.0,58641.0,0.18]
[1617702416721,0.10725655,58646.0,58640.0,0.43669801]
[1617702417020,0.50317516,58645.0,58642.0,0.27]
[1617702417220,0.50317516,58645.0,58641.0,0.61675175]
[1617702417422,0.50317516,58645.0,58641.0,0.43675175]
[1617702417721,0.1578268,58645.0,58643.0,0.06041184]
[1617702417920,0.1578268,58645.0,58642.0,0.27]
[1617702417921,0.15782631,58644.0,58642.0,0.33041145]
[1617702418122,0.15782631,58644.0,58642.0,0.06041145]
[1617702418427,0.59952957,58645.0,58643.0,0.33041138]
[1617702418624,0.54896096,58646.0,58643.0,0.33041138]
[1617702418824,0.54896096,58646.0,58643.0,0.06041138]
[1617702419225,0.54896096,58646.0,58644.0,0.27]
[1617702419626,0.54896096,58646.0,58638.0,0.27]
[1617702420026,0.54896096,58646.0,58639.0,0.27]
[1617702420327,0.54896096,58646.0,58638.0,0.27]
[1617702420328,3.05358802,58639.0,58638.0,0.27]
[1617702420527,3.05358802,58639.0,58637.0,0.43629479]
[1617702420727,3.16084457,58639.0,58637.0,0.43629479]
[1617702420929,3.16084457,58639.0,58638.0,0.27]
[1617702422030,3.16084457,58639.0,58635.0,0.43668409]
[1617702422329,0.10725655,58639.0,58638.0,3.2907]
[1617702422935,0.10725655,58639.0,58638.0,3.5607]
[1617702430543,0.10725655,58639.0,58638.0,0.27]
[1617702430744,3.77095655,58639.0,58638.0,0.27]
[1617702430944,3.77095655,58639.0,58633.0,0.27]
[1617702431344,3.77095655,58639.0,58638.0,0.27]
[1617702431345,4.21260696,58639.0,58638.0,0.27]
[1617702431544,4.21260696,58639.0,58633.0,0.27]
[1617702433548,3.77095655,58639.0,58633.0,0.27]
[1617702434848,3.82175655,58639.0,58633.0,0.27]
[1617702435255,3.77095655,58639.0,58633.0,0.27]
[1617702438553,3.77095655,58639.0,58638.0,2.72557529]
[1617702438957,4.13179931,58639.0,58638.0,2.99557529]
[1617702442359,4.43253467,58639.0,58638.0,2.99557529]
[1617702452576,4.87364215,58639.0,58638.0,2.99557529]
[1617702452975,4.87364215,58639.0,58638.0,0.27]
[1617702453275,4.87364215,58639.0,58633.0,0.27]
[1617702454276,0.66170572,58634.0,58633.0,0.27]
[1617702454877,0.66170572,58634.0,58633.0,3.8693]
[1617702459883,0.66170572,58634.0,58633.0,3.99773]
[1617702460884,0.66170572,58634.0,58633.0,0.39843]
[1617702461184,3.96190572,58634.0,58633.0,0.27]
[1617702461785,4.10393693,58634.0,58633.0,0.27]
[1617702465991,4.54616458,58634.0,58633.0,0.93279719]
[1617702466792,4.54616458,58634.0,58633.0,0.57127145]
[1617702475800,4.54616458,58634.0,58633.0,3.19537145]
[1617702478002,4.54616458,58634.0,58633.0,3.55729011]
[1617702479102,4.54616458,58634.0,58633.0,3.71796011]
[1617702481026,1.24596458,58634.0,58633.0,3.71796011]
[1617702481504,1.10393337,58634.0,58633.0,3.71796011]
[1617702481904,1.24624512,58634.0,58633.0,3.71796011]
[1617702482322,1.10393337,58634.0,58633.0,3.71796011]
[1617702482719,1.10393337,58634.0,58633.0,1.09386011]
[1617702483109,3.90623337,58634.0,58633.0,1.09386011]
[1617702483317,3.90623337,58634.0,58633.0,0.93319011]
[1617702483839,4.32320512,58634.0,58633.0,0.93319011]
[1617702487312,1.52090512,58634.0,58633.0,0.93319011]
[1617702487511,1.52090512,58634.0,58633.0,3.59409011]
[1617702487814,1.10393337,58634.0,58633.0,3.59409011]
[1617702488215,1.10393337,58634.0,58633.0,4.59409011]
[1617702488413,1.10393337,58634.0,58633.0,4.79409011]
[1617702489848,1.10393337,58634.0,58633.0,3.59409011]
[1617702491021,1.10393337,58634.0,58633.0,0.93319011]
[1617702491319,3.92583337,58634.0,58633.0,0.93319011]
[1617702491919,4.33989381,58634.0,58633.0,0.93319011]
[1617702492919,4.33989381,58634.0,58633.0,1.93319011]
[1617702493121,4.33989381,58634.0,58633.0,2.37544819]
[1617702493626,4.33989381,58634.0,58633.0,2.46609341]
[1617702493923,4.33989381,58634.0,58633.0,1.46609341]
[1617702494620,4.33989381,58634.0,58633.0,0.93319011]
[1617702495720,1.51799381,58634.0,58633.0,0.93319011]
[1617702496222,1.51799381,58634.0,58633.0,4.05779011]